fUSD/lending_fUSD_20250608
["ID","MTS","AMOUNT","RATE_DAILY","PERIOD"]
[364954790,1749350737692,-1132.72,0.00019342,2]
[364954791,1749350737714,-502.96658989,0.00019342,2]
[364954792,1749350737739,-386.65596502,0.00019342,2]
[364954793,1749350737761,-501.66696714,0.00019342,2]
[364954794,1749350737783,-470.41815585,0.00019342,2]
[364954795,1749350737806,-480.0,0.00019342,2]
[364954796,1749350737829,-480.0,0.00019342,2]
[364954797,1749350738055,-905.72,0.00019342,2]
[364954798,1749350738077,-480.0,0.00019342,2]
[364954799,1749350738099,-480.0,0.00019342,2]
[364954800,1749350738120,-480.0,0.00019342,2]
[364954801,1749350738142,-480.0,0.00019342,2]
[364954802,1749350738163,-480.0,0.00019342,2]
[364954803,1749350738185,-480.0,0.00019342,2]
[364954804,1749350738207,-480.0,0.00019342,2]
[364954805,1749350738231,-480.0,0.00019342,2]
[364954806,1749350738252,-487.36260292,0.00019342,2]
[364954807,1749350738274,-480.0,0.00019342,2]
[364954808,1749350738297,-480.0,0.00019342,2]
[364954809,1749350738321,-480.0,0.00019342,2]
[364954810,1749350738344,-480.0,0.00019342,2]
[364954811,1749350738367,-480.0,0.00019342,2]
[364954812,1749350738391,-480.0,0.00019342,2]
[364954813,1749350738413,-480.0,0.00019342,2]
[364954814,1749350738437,-480.0,0.00019342,2]
[364954815,1749350738460,-480.0,0.00019342,2]
[364954816,1749350738483,-480.0,0.00019342,2]
[364954817,1749350738506,-492.280164,0.00019342,2]
[364954818,1749350738529,-480.0,0.00019342,2]
[364954819,1749350738552,-501.42899496,0.00019342,2]
[364954820,1749350738575,-480.0,0.00019342,2]
[364954821,1749350738598,-480.0,0.00019342,2]
[364954822,1749350738621,-480.0,0.00019342,2]
[364954823,1749350738644,-480.0,0.00019342,2]
[364954824,1749350738667,-480.0,0.00019342,2]
[364954825,1749350738690,-491.68821743,0.00019342,2]
[364954826,1749350738714,-480.0,0.00019342,2]
[364954827,1749350738737,-411.16285068,0.00019342,2]
[364954828,1749350738760,-480.0,0.00019342,2]
[364954829,1749350738783,-490.55789504,0.00019342,2]
[364954830,1749350738806,-480.0,0.00019342,2]
[364954831,1749350738830,-480.0,0.00019342,2]
[364954832,1749350738852,-437.04324747,0.00019342,2]
[364954833,1749350738875,-480.0,0.00019342,2]
[364954834,1749350738897,-501.00667758,0.00019342,2]
[364954835,1749350738920,-753.05,0.00019342,2]
[364954836,1749350738942,-480.0,0.00019342,2]
[364954837,1749350738964,-480.0,0.00019342,2]
[364954838,1749350738985,-494.42599462,0.00019342,2]
[364954839,1749350739006,-495.85317607,0.00019342,2]
[364954840,1749350739028,-480.0,0.00019342,2]
[364954841,1749350739063,-480.0,0.00019342,2]
[364954842,1749350739090,-480.0,0.00019342,2]
[364954843,1749350739113,-480.0,0.00019342,2]
[364954844,1749350739137,-493.23337098,0.00019342,2]
[364954845,1749350739161,-480.0,0.00019342,2]
[364954846,1749350739184,-480.0,0.00019342,2]
[364954847,1749350739206,-447.75972617,0.00019342,2]
[364954848,1749350739231,-480.0,0.00019342,2]
[364954849,1749350739254,-480.0,0.00019342,2]
[364954850,1749350739277,-393.63275875,0.00019342,2]
[364954851,1749350739300,-480.0,0.00019342,2]
[364954852,1749350739324,-480.0,0.00019342,2]
[364954853,1749350739348,-480.0,0.00019342,2]
[364954854,1749350739373,-480.0,0.00019342,2]
[364954855,1749350739399,-480.0,0.00019342,2]
[364954856,1749350739422,-480.0,0.00019342,2]
[364954857,1749350739446,-477.54913703,0.00019342,2]
[364954858,1749350739471,-518.48750385,0.00019342,2]
[364954859,1749350739494,-480.0,0.00019342,2]
[364954860,1749350739519,-480.0,0.00019342,2]
[364954861,1749350739543,-480.0,0.00019342,2]
[364954862,1749350739572,-480.0,0.00019342,2]
[364954863,1749350739598,-480.0,0.00019342,2]
[364954864,1749350739624,-480.0,0.00019342,2]
[364954865,1749350739649,-480.0,0.00019342,2]
[364954866,1749350739674,-480.0,0.00019342,2]
[364954867,1749350739698,-480.0,0.00019342,2]
[364954868,1749350739722,-501.36366783,0.00019342,2]
[364954869,1749350739746,-480.0,0.00019342,2]
[364954870,1749350739770,-480.60623863,0.00019342,2]
[364954871,1749350739794,-480.0,0.00019342,2]
[364954872,1749350739817,-480.0,0.00019342,2]
[364954873,1749350739841,-472.163097,0.00019342,2]
[364954874,1749350739868,-867.61,0.00019342,2]
[364954875,1749350739893,-480.0,0.00019342,2]
[364954876,1749350739917,-480.0,0.00019342,2]
[364954877,1749350739943,-480.0,0.00019342,2]
[364954878,1749350739966,-480.0,0.00019342,2]
[364954879,1749350739989,-480.0,0.00019342,2]
[364954880,1749350740013,-480.0,0.00019342,2]
[364954881,1749350740035,-480.0,0.00019342,2]
[364954882,1749350740058,-480.0,0.00019342,2]
[364954883,1749350740081,-480.0,0.00019342,2]
[364954884,1749350740109,-588.71809884,0.00019342,2]
[364954885,1749350740131,-480.0,0.00019342,2]
[364954886,1749350740155,-488.47690788,0.00019342,2]
[364954887,1749350740177,-480.0,0.00019342,2]
[364954888,1749350740199,-480.0,0.00019342,2]
[364954889,1749350740223,-480.0,0.00019342,2]
[364954890,1749350740247,-480.0,0.00019342,2]
[364954891,1749350740270,-480.0,0.00019342,2]
[364954892,1749350740294,-480.0,0.00019342,2]
[364954893,1749350740318,-480.0,0.00019342,2]
[364954894,1749350740341,-480.0,0.00019342,2]
[364954895,1749350740364,-480.0,0.00019342,2]
[364954896,1749350740388,-480.0,0.00019342,2]
[364954897,1749350740412,-434.66267356,0.00019342,2]
[364954898,1749350740435,-480.0,0.00019342,2]
[364954899,1749350740459,-480.0,0.00019342,2]
[364954900,1749350740482,-480.0,0.00019342,2]
[364954901,1749350740505,-480.0,0.00019342,2]
[364954902,1749350740528,-480.0,0.00019342,2]
[364954903,1749350740551,-480.0,0.00019342,2]
[364954904,1749350740576,-480.0,0.00019342,2]
[364954905,1749350740599,-480.0,0.00019342,2]
[364954906,1749350740622,-579.09,0.00019342,2]
[364954907,1749350740650,-480.0,0.00019342,2]
[364954908,1749350740674,-480.0,0.00019342,2]
[364954909,1749350740698,-480.0,0.00019342,2]
[364954910,1749350740721,-480.0,0.00019342,2]
[364954911,1749350740744,-480.0,0.00019342,2]
[364954912,1749350740769,-480.0,0.00019342,2]
[364954913,1749350740792,-497.72932156,0.00019342,2]
[364954914,1749350740815,-480.0,0.00019342,2]
[364954915,1749350740836,-480.0,0.00019342,2]
[364954916,1749350740860,-480.0,0.00019342,2]
[364954917,1749350740883,-480.0,0.00019342,2]
[364954918,1749350740907,-480.0,0.00019342,2]
[364954919,1749350740931,-535.49543585,0.00019342,2]
[364954920,1749350740954,-1042.45,0.00019342,2]
[364954921,1749350740977,-480.0,0.00019342,2]
[364954922,1749350741000,-480.0,0.00019342,2]
[364954923,1749350741024,-480.0,0.00019342,2]
[364954924,1749350741047,-496.49148456,0.00019342,2]
[364954925,1749350741071,-1070.56,0.00019342,2]
[364954926,1749350741093,-480.0,0.00019342,2]
[364954927,1749350741116,-480.0,0.00019342,2]
[364954928,1749350741139,-480.0,0.00019342,2]
[364954929,1749350741163,-540.25190469,0.00019342,2]
[364954930,1749350741185,-508.7726487,0.00019342,2]
[364954931,1749350741209,-480.0,0.00019342,2]
[364954932,1749350741232,-480.0,0.00019342,2]
[364954933,1749350741255,-480.0,0.00019342,2]
[364954934,1749350741278,-496.57,0.00019342,2]
[364954935,1749350741300,-480.0,0.00019342,2]
[364954936,1749350741323,-480.0,0.00019342,2]
[364954937,1749350741346,-480.0,0.00019342,2]
[364954938,1749350741369,-480.0,0.00019342,2]
[364954939,1749350741394,-480.0,0.00019342,2]
[364954940,1749350741417,-480.0,0.00019342,2]
[364954941,1749350741440,-262.79630412,0.00019342,2]
[364954942,1749350741465,-480.0,0.00019342,2]
[364954943,1749350741490,-480.0,0.00019342,2]
[364954944,1749350741514,-480.0,0.00019342,2]
[364954945,1749350741538,-480.0,0.00019342,2]
[364954946,1749350741562,-480.0,0.00019342,2]
[364954947,1749350741585,-480.0,0.00019342,2]
[364954948,1749350741608,-504.60597301,0.00019342,2]
[364954949,1749350741631,-480.0,0.00019342,2]
[364954950,1749350741654,-480.0,0.00019342,2]
[364954951,1749350741676,-480.0,0.00019342,2]
[364954952,1749350741700,-561.38738273,0.00019342,2]
[364954953,1749350741725,-374.75420814,0.00019342,2]
[364954954,1749350741749,-480.0,0.00019342,2]
[364954955,1749350741772,-480.0,0.00019342,2]
[364954956,1749350741797,-480.0,0.00019342,2]
[364954957,1749350741821,-480.0,0.00019342,2]
[364954958,1749350741848,-480.0,0.00019342,2]
[364954959,1749350741874,-480.0,0.00019342,2]
[364954960,1749350741897,-480.0,0.00019342,2]
[364954961,1749350741921,-480.0,0.00019342,2]
[364954962,1749350741944,-480.0,0.00019342,2]
[364954963,1749350741967,-480.0,0.00019342,2]
[364954964,1749350741989,-480.0,0.00019342,2]
[364954965,1749350742011,-437.71890014,0.00019342,2]
[364954966,1749350742033,-480.0,0.00019342,2]
[364954967,1749350742056,-480.0,0.00019342,2]
[364954968,1749350742079,-480.0,0.00019342,2]
[364954969,1749350742101,-480.0,0.00019342,2]
[364954970,1749350742123,-475.08961731,0.00019342,2]
[364954971,1749350742146,-480.0,0.00019342,2]
[364954972,1749350742169,-480.0,0.00019342,2]
[364954973,1749350742419,-480.0,0.00019342,2]
[364954974,1749350742444,-480.0,0.00019342,2]
[364954975,1749350742470,-480.0,0.00019342,2]
[364954976,1749350742496,-480.0,0.00019342,2]
[364954977,1749350742520,-480.0,0.00019342,2]
[364954978,1749350742546,-480.0,0.00019342,2]
[364954979,1749350742569,-480.0,0.00019342,2]
[364954980,1749350742595,-480.0,0.00019342,2]
[364954981,1749350742619,-480.0,0.00019342,2]
[364954982,1749350742646,-480.0,0.00019342,2]
[364954983,1749350742670,-480.0,0.00019342,2]
[364954984,1749350742693,-480.0,0.00019342,2]
[364954985,1749350742716,-480.0,0.00019342,2]
[364954986,1749350742738,-490.90930516,0.00019342,2]
[364954987,1749350742760,-480.0,0.00019342,2]
[364954988,1749350742783,-480.0,0.00019342,2]
[364954989,1749350742807,-480.0,0.00019342,2]
[364954990,1749350742831,-480.0,0.00019342,2]
[364954991,1749350742855,-480.0,0.00019342,2]
[364954992,1749350742878,-480.0,0.00019342,2]
[364954993,1749350742901,-218.05317133,0.00019342,2]
[364954994,1749350742925,-480.0,0.00019342,2]
[364954995,1749350742948,-1349.14,0.00019342,2]
[364954996,1749350742970,-466.35638432,0.00019342,2]
[364954997,1749350742992,-480.0,0.00019342,2]
[364954998,1749350743015,-480.0,0.00019342,2]
[364954999,1749350743037,-480.0,0.00019342,2]
[364955000,1749350743062,-480.0,0.00019342,2]
[364955001,1749350743085,-480.0,0.00019342,2]
[364955002,1749350743106,-480.0,0.00019342,2]
[364955003,1749350743131,-1198.2,0.00019342,2]
[364955004,1749350743154,-624.42,0.00019342,2]
[364955005,1749350743176,-480.0,0.00019342,2]
[364955006,1749350743200,-480.0,0.00019342,2]
[364955007,1749350743225,-480.0,0.00019342,2]
[364955008,1749350743249,-480.0,0.00019342,2]
[364955009,1749350743274,-480.0,0.00019342,2]
[364955010,1749350743299,-480.0,0.00019342,2]
[364955011,1749350743323,-16558.24151154,0.00019342,2]
[364955015,1749350827527,-203.0,0.00017203,2]
[364955016,1749350827551,-23519.8,0.00018557,2]
[364955017,1749350827574,-419.5712,0.00019078,2]
[364955018,1749350827595,-1000.0,0.00019078,2]
[364955019,1749350827618,-500.0,0.00019173,2]
[364955020,1749350827644,-480.0,0.00019178,2]
[364955021,1749350827666,-460.0,0.00019178,2]
[364955022,1749350827688,-480.0,0.00019178,2]
[364955023,1749350827709,-466.84733649,0.00019178,2]
[364955024,1749350827732,-480.0,0.00019178,2]
[364955025,1749350827753,-390.13858027,0.00019178,2]
[364955026,1749350827775,-480.0,0.00019178,2]
[364955027,1749350827797,-464.52166075,0.00019178,2]
[364955028,1749350827820,-5974.22,0.00019178,2]
[364955029,1749350827843,-460.0,0.00019178,2]
[364955030,1749350827867,-480.0,0.00019178,2]
[364955031,1749350827890,-370.32758987,0.00019178,2]
[364955032,1749350827911,-467.82264928,0.00019178,2]
[364955033,1749350827934,-480.0,0.00019178,2]
[364955034,1749350827959,-480.0,0.00019178,2]
[364955035,1749350827981,-1168.01,0.00019178,2]
[364955036,1749350828002,-466.73811317,0.00019178,2]
[364955037,1749350828024,-480.0,0.00019178,2]
[364955038,1749350828258,-480.0,0.00019178,2]
[364955039,1749350828280,-463.09760936,0.00019178,2]
[364955040,1749350828304,-480.0,0.00019178,2]
[364955041,1749350828325,-460.0,0.00019178,2]
[364955042,1749350828352,-1677.48,0.00019178,2]
[364955043,1749350828373,-564.97,0.00019178,2]
[364955044,1749350828394,-460.0,0.00019178,2]
[364955045,1749350828418,-406.93935719,0.00019178,2]
[364955046,1749350828443,-480.0,0.00019178,2]
[364955047,1749350828467,-460.0,0.00019178,2]
[364955048,1749350828490,-480.0,0.00019178,2]
[364955049,1749350828511,-472.03426174,0.00019178,2]
[364955050,1749350828533,-480.0,0.00019178,2]
[364955051,1749350828555,-480.0,0.00019178,2]
[364955052,1749350828578,-463.75139394,0.00019178,2]
[364955053,1749350828599,-349.29073453,0.00019178,2]
[364955054,1749350828620,-480.0,0.00019178,2]
[364955055,1749350828642,-480.0,0.00019178,2]
[364955056,1749350828665,-480.0,0.00019178,2]
[364955057,1749350828688,-480.0,0.00019178,2]
[364955058,1749350828711,-480.0,0.00019178,2]
[364955059,1749350828735,-480.0,0.00019178,2]
[364955060,1749350828756,-464.40275613,0.00019178,2]
[364955061,1749350828780,-480.0,0.00019178,2]
[364955062,1749350828803,-480.0,0.00019178,2]
[364955063,1749350828825,-480.0,0.00019178,2]
[364955064,1749350828847,-480.0,0.00019178,2]
[364955065,1749350828870,-480.0,0.00019178,2]
[364955066,1749350828891,-162.32879907,0.00019178,2]
[364955067,1749350828913,-480.0,0.00019178,2]
[364955068,1749350828935,-480.0,0.00019178,2]
[364955069,1749350828959,-480.0,0.00019178,2]
[364955070,1749350828981,-480.0,0.00019178,2]
[364955071,1749350829005,-500.0,0.00019178,2]
[364955072,1749350829026,-500.0,0.00019178,2]
[364955073,1749350829049,-392.66824503,0.00019178,2]
[364955074,1749350829070,-497.98100498,0.00019178,2]
[364955075,1749350829092,-480.0,0.00019178,2]
[364955076,1749350829114,-480.0,0.00019178,2]
[364955077,1749350829135,-480.0,0.00019178,2]
[364955078,1749350829156,-480.0,0.00019178,2]
[364955079,1749350829178,-480.0,0.00019178,2]
[364955080,1749350829199,-480.0,0.00019178,2]
[364955081,1749350829222,-480.0,0.00019178,2]
[364955082,1749350829243,-480.0,0.00019178,2]
[364955083,1749350829265,-480.0,0.00019178,2]
[364955084,1749350829287,-469.0207358,0.00019178,2]
[364955085,1749350829309,-1075.14,0.00019178,2]
[364955086,1749350829331,-480.0,0.00019178,2]
[364955087,1749350829352,-460.0,0.00019178,2]
[364955088,1749350829373,-487.72836379,0.00019178,2]
[364955089,1749350829394,-480.0,0.00019178,2]
[364955090,1749350829416,-480.0,0.00019178,2]
[364955091,1749350829438,-480.0,0.00019178,2]
[364955092,1749350829460,-480.0,0.00019178,2]
[364955093,1749350829482,-480.0,0.00019178,2]
[364955094,1749350829503,-390.57695904,0.00019178,2]
[364955095,1749350829526,-480.0,0.00019178,2]
[364955096,1749350829546,-228.35392832,0.00019178,2]
[364955097,1749350829568,-460.0,0.00019178,2]
[364955098,1749350829591,-508.55740658,0.00019178,2]
[364955099,1749350829614,-480.0,0.00019178,2]
[364955100,1749350829635,-387.09798895,0.00019178,2]
[364955101,1749350829656,-849.84,0.00019178,2]
[364955102,1749350829676,-460.0,0.00019178,2]
[364955103,1749350829696,-480.20159499,0.00019178,2]
[364955104,1749350829719,-480.0,0.00019178,2]
[364955105,1749350829743,-480.0,0.00019178,2]
[364955106,1749350829766,-480.0,0.00019178,2]
[364955107,1749350829788,-480.0,0.00019178,2]
[364955108,1749350829809,-519.39,0.00019178,2]
[364955109,1749350829830,-466.79840857,0.00019178,2]
[364955110,1749350829851,-480.0,0.00019178,2]
[364955111,1749350829873,-460.0,0.00019178,2]
[364955112,1749350829895,-480.0,0.00019178,2]
[364955113,1749350829916,-480.0,0.00019178,2]
[364955114,1749350829940,-809.6,0.00019178,2]
[364955115,1749350829964,-480.0,0.00019178,2]
[364955116,1749350829986,-480.0,0.00019178,2]
[364955117,1749350830008,-480.0,0.00019178,2]
[364955118,1749350830032,-3083.56,0.00019178,2]
[364955119,1749350830053,-480.0,0.00019178,2]
[364955120,1749350830074,-380.0,0.00019178,2]
[364955121,1749350830096,-480.0,0.00019178,2]
[364955122,1749350830121,-256.82693175,0.00019178,2]
[364955123,1749350830146,-480.0,0.00019178,2]
[364955124,1749350830169,-480.0,0.00019178,2]
[364955125,1749350830194,-470.34953059,0.00019178,2]
[364955126,1749350830218,-6758.72,0.00019178,2]
[364955127,1749350830241,-112.29685982,0.00019178,2]
[364955141,1749350862190,170.68,0.00013699,2]
[364955143,1749350910349,-204.0,0.00018878,2]
[364955144,1749350910373,-600.0,0.000191,6]
[364955145,1749350910394,-1006.34498553,0.00019177,2]
[364955146,1749350910417,-293.39372821,0.00019178,2]
[364955147,1749350910441,-460.0,0.00019178,2]
[364955148,1749350910465,-460.0,0.00019178,2]
[364955149,1749350910486,-480.0,0.00019178,2]
[364955150,1749350910508,-705.97,0.00019178,2]
[364955151,1749350910529,-461.34941171,0.00019178,2]
[364955152,1749350910551,-480.0,0.00019178,2]
[364955153,1749350910572,-390.9635578,0.00019178,2]
[364955154,1749350910594,-480.0,0.00019178,2]
[364955155,1749350910615,-464.71730265,0.00019178,2]
[364955156,1749350910639,-480.0,0.00019178,2]
[364955157,1749350910661,-460.0,0.00019178,2]
[364955158,1749350910682,-460.0,0.00019178,2]
[364955159,1749350910703,-183.02445307,0.00019178,2]
[364955160,1749350910726,-480.0,0.00019178,2]
[364955161,1749350910749,-480.0,0.00019178,2]
[364955162,1749350910770,-380.0,0.00019178,2]
[364955163,1749350910793,-480.0,0.00019178,2]
[364955164,1749350910816,-500.0,0.00019178,2]
[364955165,1749350910843,-500.0,0.00019178,2]
[364955166,1749350910865,-480.0,0.00019178,2]
[364955167,1749350910886,-480.0,0.00019178,2]
[364955168,1749350910907,-306.27755781,0.00019178,2]
[364955169,1749350910930,-460.0,0.00019178,2]
[364955170,1749350910951,-505.16368033,0.00019178,2]
[364955171,1749350910974,-501.07731097,0.00019178,2]
[364955172,1749350910996,-480.0,0.00019178,2]
[364955173,1749350911020,-480.0,0.00019178,2]
[364955174,1749350911042,-380.0,0.00019178,2]
[364955175,1749350911068,-747.62,0.00019178,2]
[364955176,1749350911091,-460.0,0.00019178,2]
[364955177,1749350911114,-460.0,0.00019178,2]
[364955178,1749350911139,-270.56703973,0.00019178,2]
[364955179,1749350911162,-480.0,0.00019178,2]
[364955180,1749350911183,-648.61,0.00019178,2]
[364955181,1749350911205,-460.0,0.00019178,2]
[364955182,1749350911227,-480.0,0.00019178,2]
[364955183,1749350911251,-480.0,0.00019178,2]
[364955184,1749350911273,-480.0,0.00019178,2]
[364955185,1749350911296,-481.70264149,0.00019178,2]
[364955186,1749350911319,-460.0,0.00019178,2]
[364955187,1749350911346,-597.01,0.00019178,2]
[364955188,1749350911368,-460.0,0.00019178,2]
[364955189,1749350911392,-473.80432828,0.00019178,2]
[364955190,1749350911416,-480.0,0.00019178,2]
[364955191,1749350911443,-480.0,0.00019178,2]
[364955192,1749350911466,-480.0,0.00019178,2]
[364955193,1749350911489,-480.0,0.00019178,2]
[364955194,1749350911510,-488.89887158,0.00019178,2]
[364955195,1749350911532,-480.0,0.00019178,2]
[364955196,1749350911555,-460.0,0.00019178,2]
[364955197,1749350911577,-480.0,0.00019178,2]
[364955198,1749350911601,-596.6,0.00019178,2]
[364955199,1749350911624,-480.0,0.00019178,2]
[364955200,1749350911649,-730.1,0.00019178,2]
[364955201,1749350911671,-380.0,0.00019178,2]
[364955202,1749350911697,-620.88023757,0.00019178,2]
[364955203,1749350911720,-477.05306538,0.00019178,2]
[364955204,1749350911747,-1186.32,0.00019178,2]
[364955205,1749350911770,-460.0,0.00019178,2]
[364955206,1749350911794,-460.0,0.00019178,2]
[364955207,1749350911816,-383.61260498,0.00019178,2]
[364955208,1749350911838,-527.24,0.00019178,2]
[364955209,1749350911862,-380.0,0.00019178,2]
[364955210,1749350911883,-478.40520457,0.00019178,2]
[364955211,1749350911906,-460.0,0.00019178,2]
[364955212,1749350911929,-1395.92,0.00019178,2]
[364955213,1749350911951,-690.3,0.00019178,2]
[364955214,1749350911974,-614.14444329,0.00019178,2]
[364955215,1749350911997,-460.0,0.00019178,2]
[364955216,1749350912023,-403.94502119,0.00019178,2]
[364955217,1749350912047,-393.30909271,0.00019178,2]
[364955218,1749350912074,-480.0,0.00019178,2]
[364955219,1749350912097,-480.0,0.00019178,2]
[364955220,1749350912118,-480.0,0.00019178,2]
[364955221,1749350912139,-494.60921406,0.00019178,2]
[364955222,1749350912162,-460.0,0.00019178,2]
[364955223,1749350912183,-480.0,0.00019178,2]
[364955224,1749350912204,-473.66794149,0.00019178,2]
[364955225,1749350912226,-480.0,0.00019178,2]
[364955226,1749350912246,-397.48563712,0.00019178,2]
[364955227,1749350912268,-480.0,0.00019178,2]
[364955228,1749350912289,-462.29764722,0.00019178,2]
[364955229,1749350912313,-460.0,0.00019178,2]
[364955230,1749350912336,-480.0,0.00019178,2]
[364955231,1749350912367,-480.0,0.00019178,2]
[364955232,1749350912393,-460.0,0.00019178,2]
[364955233,1749350912414,-380.0,0.00019178,2]
[364955234,1749350912436,-480.0,0.00019178,2]
[364955235,1749350912457,-1521.71,0.00019178,2]
[364955236,1749350912481,-2435.99,0.00019178,2]
[364955237,1749350912505,-480.0,0.00019178,2]
[364955238,1749350912528,-388.86511213,0.00019178,2]
[364955239,1749350912551,-480.0,0.00019178,2]
[364955240,1749350912573,-460.0,0.00019178,2]
[364955241,1749350912599,-480.0,0.00019178,2]
[364955242,1749350912818,-380.0,0.00019178,2]
[364955243,1749350912852,-480.0,0.00019178,2]
[364955244,1749350912874,-480.0,0.00019178,2]
[364955245,1749350912894,-480.0,0.00019178,2]
[364955246,1749350912917,-500.0,0.00019178,2]
[364955247,1749350912943,-839.1,0.00019178,2]
[364955248,1749350912966,-500.0,0.00019178,2]
[364955249,1749350912989,-480.0,0.00019178,2]
[364955250,1749350913011,-460.0,0.00019178,2]
[364955251,1749350913032,-480.0,0.00019178,2]
[364955252,1749350913058,-397.05373922,0.00019178,2]
[364955253,1749350913082,-480.0,0.00019178,2]
[364955254,1749350913112,-480.0,0.00019178,2]
[364955255,1749350913136,-667.96,0.00019178,2]
[364955256,1749350913158,-365.52826594,0.00019178,2]
[364955257,1749350913180,-480.0,0.00019178,2]
[364955258,1749350913203,-380.0,0.00019178,2]
[364955259,1749350913224,-460.71634872,0.00019178,2]
[364955260,1749350913247,-480.0,0.00019178,2]
[364955261,1749350913268,-1000.0,0.00019178,2]
[364955262,1749350913290,-480.0,0.00019178,2]
[364955263,1749350913313,-480.0,0.00019178,2]
[364955264,1749350913336,-480.0,0.00019178,2]
[364955265,1749350913358,-388.91549245,0.00019178,2]
[364955266,1749350913381,-380.0,0.00019178,2]
[364955267,1749350913404,-480.0,0.00019178,2]
[364955268,1749350913427,-480.0,0.00019178,2]
[364955269,1749350913450,-380.0,0.00019178,2]
[364955270,1749350913472,-506.99352239,0.00019178,2]
[364955271,1749350913494,-419.41897029,0.00019178,2]
[364955272,1749350913517,-480.0,0.00019178,2]
[364955273,1749350913540,-480.0,0.00019178,2]
[364955274,1749350913563,-480.0,0.00019178,2]
[364955275,1749350913587,-480.0,0.00019178,2]
[364955276,1749350913609,-480.0,0.00019178,2]
[364955277,1749350913632,-480.0,0.00019178,2]
[364955278,1749350913655,-480.0,0.00019178,2]
[364955279,1749350913679,-480.0,0.00019178,2]
[364955280,1749350913701,-380.0,0.00019178,2]
[364955281,1749350913723,-480.0,0.00019178,2]
[364955282,1749350913745,-414.73808137,0.00019178,2]
[364955283,1749350913769,-461.67954159,0.00019178,2]
[364955284,1749350913794,-480.0,0.00019178,2]
[364955285,1749350913816,-480.0,0.00019178,2]
[364955286,1749350913837,-281.66118645,0.00019178,2]
[364955287,1749350913860,-2966.12,0.00019178,2]
[364955288,1749350913883,-480.0,0.00019178,2]
[364955289,1749350913906,-480.0,0.00019178,2]
[364955290,1749350913927,-282.0,0.00019178,2]
[364955291,1749350913950,-1200.0,0.000192,7]
[364955292,1749350913975,-151.37467175,0.00019242,2]
[364955293,1749350913997,-1800.0,0.000193,7]
[364955294,1749350914020,-151.37467174,0.00019315,2]
[364955295,1749350914042,-500.0,0.00019341,2]
[364955296,1749350914070,-500.0,0.00019341,2]
[364955297,1749350914092,-500.0,0.00019341,2]
[364955298,1749350914115,-399.55652435,0.00019341,2]
[364955299,1749350914138,-500.0,0.00019341,2]
[364955300,1749350914162,-500.0,0.00019341,2]
[364955301,1749350914184,-500.0,0.00019341,2]
[364955302,1749350914206,-480.0,0.00019342,2]
[364955303,1749350914227,-480.0,0.00019342,2]
[364955304,1749350914249,-521.12902046,0.00019342,2]
[364955305,1749350914271,-480.0,0.00019342,2]
[364955306,1749350914293,-480.0,0.00019342,2]